fUSD/lending_fUSD_20241227
["ID","MTS","AMOUNT","RATE_DAILY","PERIOD"]
[346775996,1735277746636,500.0,0.00011973,2]
[346775997,1735277746886,500.0,0.00012247,2]
[346775998,1735277746937,153.0,0.00012228,2]
[346775999,1735277747137,153.0,0.00012228,2]
[346776000,1735277747189,500.0,0.00012521,2]
[346776001,1735277747365,153.0,0.00012228,2]
[346776002,1735277747424,500.0,0.00012795,2]
[346776003,1735277747595,153.0,0.00012228,2]
[346776004,1735277747721,830.58,0.00011973,2]
[346776005,1735277748590,830.58,0.00012247,2]
[346776006,1735277749291,830.58,0.00012521,2]
[346776007,1735277749826,630.27,0.00011973,2]
[346776008,1735277749883,500.0,0.00011973,2]
[346776009,1735277750152,500.0,0.00012247,2]
[346776010,1735277750212,630.27,0.00012247,2]
[346776011,1735277750425,630.27,0.00012521,2]
[346776012,1735277750485,500.0,0.00012521,2]
[346776013,1735277750676,630.27,0.00012795,2]
[346776014,1735277750735,522.23718336,0.00012795,2]
[346776015,1735277750785,830.58,0.00012795,2]
[346776016,1735277751941,153.0,0.00012228,2]
[346776017,1735277752152,153.0,0.00012228,2]
[346776018,1735277752206,614.11,0.00011973,2]
[346776019,1735277752477,614.11,0.00012247,2]
[346776020,1735277752731,614.11,0.00012521,2]
[346776021,1735277752954,153.0,0.00012228,2]
[346776022,1735277753002,614.11,0.00012795,2]
[346776023,1735277753335,1288.62,0.00011973,2]
[346776024,1735277753786,1288.62,0.00012247,2]
[346776025,1735277753875,1288.62,0.00012521,2]
[346776026,1735277754444,1288.62,0.00012795,2]
[346776027,1735277754501,612.99,0.00011973,2]
[346776028,1735277754729,612.99,0.00012247,2]
[346776029,1735277755011,612.99,0.00012521,2]
[346776030,1735277755299,612.99,0.00012795,2]
[346776031,1735277755435,1067.55,0.00011973,2]
[346776032,1735277755681,1067.55,0.00012247,2]
[346776033,1735277756206,1067.55,0.00012521,2]
[346776034,1735277756310,1067.55,0.00012795,2]
[346776035,1735277756449,953.41,0.00011974,2]
[346776036,1735277757322,953.41,0.00012248,2]
[346776037,1735277757964,1525.45,0.00011973,2]
[346776038,1735277758204,1525.45,0.00012247,2]
[346776039,1735277758421,953.41,0.00012522,2]
[346776040,1735277758473,1525.45,0.00012521,2]
[346776041,1735277758807,1525.45,0.00012795,2]
[346776042,1735277759194,953.41,0.00012796,2]
[346776043,1735277762465,500.0,0.00011973,2]
[346776044,1735277762732,514.63103567,0.00012247,2]
[346776045,1735277764207,1331.66,0.00011974,2]
[346776046,1735277765147,1331.66,0.00012248,2]
[346776047,1735277765205,500.0,0.00011973,2]
[346776048,1735277765439,500.0,0.00012247,2]
[346776049,1735277765703,500.0,0.00012521,2]
[346776050,1735277765761,2522.73,0.00011975,2]
[346776051,1735277766832,1331.66,0.00012522,2]
[346776052,1735277766890,500.0,0.00012795,2]
[346776053,1735277766954,1938.37,0.00011974,2]
[346776054,1735277767090,2522.73,0.00012249,2]
[346776055,1735277767293,1331.66,0.00012796,2]
[346776056,1735277767352,1938.37,0.00012248,2]
[346776057,1735277767444,2522.73,0.00012523,2]
[346776058,1735277767747,1938.37,0.00012522,2]
[346776059,1735277768127,500.0,0.00011973,2]
[346776060,1735277768234,2522.73,0.00012797,2]
[346776061,1735277768380,500.0,0.00012247,2]
[346776062,1735277768750,500.0,0.00012521,2]
[346776063,1735277769019,500.0,0.00012795,2]
[346776064,1735277769102,1938.37,0.00012796,2]
[346776065,1735277769603,769.7,0.00011973,2]
[346776066,1735277769840,769.7,0.00012247,2]
[346776067,1735277770112,769.7,0.00012521,2]
[346776068,1735277770419,769.7,0.00012795,2]
[346776069,1735277771671,500.0,0.00011973,2]
[346776070,1735277771766,500.0,0.00012247,2]
[346776071,1735277771866,500.0,0.00012521,2]
[346776072,1735277771955,500.0,0.00012795,2]
[346776073,1735277773599,500.0,0.00011973,2]
[346776074,1735277773859,500.0,0.00012247,2]
[346776075,1735277773944,504.29,0.00011973,2]
[346776076,1735277774125,500.0,0.00012521,2]
[346776077,1735277774201,504.29,0.00012247,2]
[346776078,1735277774372,500.0,0.00012795,2]
[346776079,1735277774450,504.29,0.00012521,2]
[346776080,1735277774745,504.29,0.00012795,2]
[346776081,1735277777400,601.36,0.00011973,2]
[346776082,1735277777662,601.36,0.00012247,2]
[346776083,1735277777712,500.0,0.00011973,2]
[346776084,1735277777804,855.9,0.00011973,2]
[346776085,1735277777914,601.36,0.00012521,2]
[346776086,1735277777963,500.0,0.00012247,2]
[346776087,1735277778107,855.9,0.00012247,2]
[346776088,1735277778168,601.36,0.00012795,2]
[346776089,1735277778239,500.0,0.00012521,2]
[346776090,1735277778352,855.9,0.00012521,2]
[346776091,1735277778729,500.0,0.00012795,2]
[346776092,1735277778867,855.9,0.00012795,2]
[346776093,1735277781685,500.0,0.00011973,2]
[346776094,1735277782064,500.0,0.00012247,2]
[346776095,1735277782310,500.0,0.00012521,2]
[346776096,1735277782943,500.0,0.00012795,2]
[346776097,1735277785998,712.49,0.00011973,2]
[346776098,1735277786257,712.49,0.00012247,2]
[346776099,1735277786513,712.49,0.00012521,2]
[346776100,1735277786813,712.49,0.00012795,2]
[346776101,1735277789014,500.0,0.00011973,2]
[346776102,1735277789272,500.0,0.00012247,2]
[346776103,1735277789537,500.0,0.00012521,2]
[346776104,1735277789604,500.0,0.00011973,2]
[346776105,1735277790053,500.0,0.00012795,2]
[346776106,1735277790113,500.0,0.00012247,2]
[346776107,1735277790357,500.0,0.00012521,2]
[346776108,1735277790694,500.0,0.00012795,2]
[346776109,1735277790872,500.0,0.00011973,2]
[346776110,1735277791130,500.0,0.00012247,2]
[346776111,1735277792272,651.92,0.00011973,2]
[346776112,1735277792539,651.92,0.00012247,2]
[346776113,1735277792801,651.92,0.00012521,2]
[346776114,1735277793082,651.92,0.00012795,2]
[346776115,1735277794951,1627.99,0.00011975,2]
[346776116,1735277795749,500.0,0.00012521,2]
[346776117,1735277795835,1627.99,0.00012249,2]
[346776118,1735277796109,500.0,0.00012795,2]
[346776119,1735277796499,1627.99,0.00012523,2]
[346776120,1735277797380,1627.99,0.00012797,2]
[346776121,1735277800689,500.0,0.00011973,2]
[346776122,1735277800980,500.0,0.00012247,2]
[346776123,1735277801605,500.0,0.00012521,2]
[346776124,1735277801839,500.0,0.00012795,2]
[346776125,1735277801958,614.77,0.00011973,2]
[346776126,1735277802218,614.77,0.00012247,2]
[346776127,1735277802489,614.77,0.00012521,2]
[346776128,1735277802883,500.0,0.00011973,2]
[346776129,1735277802931,614.77,0.00012795,2]
[346776130,1735277803159,500.0,0.00012247,2]
[346776131,1735277803416,500.0,0.00012521,2]
[346776132,1735277803661,500.0,0.00012795,2]
[346776134,1735277807992,500.0,0.00011974,2]
[346776135,1735277808528,500.0,0.00012248,2]
[346776136,1735277808689,688.79,0.00011973,2]
[346776137,1735277808962,688.79,0.00012247,2]
[346776138,1735277809220,688.79,0.00012521,2]
[346776139,1735277809563,2332.93,0.00011973,2]
[346776140,1735277809612,688.79,0.00012795,2]
[346776141,1735277809815,500.0,0.00012522,2]
[346776142,1735277810522,2332.93,0.00012247,2]
[346776143,1735277810641,500.0,0.00012796,2]
[346776144,1735277811359,2332.93,0.00012521,2]
[346776145,1735277811622,1223.2,0.00011973,2]
[346776146,1735277811888,1223.2,0.00012247,2]
[346776147,1735277811960,2332.93,0.00012795,2]
[346776148,1735277812161,1223.2,0.00012521,2]
[346776149,1735277812519,1223.2,0.00012795,2]
[346776150,1735277813173,500.0,0.00011973,2]
[346776151,1735277813421,500.0,0.00012247,2]
[346776152,1735277813547,1862.69,0.00011974,2]
[346776153,1735277813669,500.0,0.00012521,2]
[346776154,1735277813972,500.0,0.00012795,2]
[346776155,1735277814895,1862.69,0.00012248,2]
[346776157,1735277815926,1862.69,0.00012522,2]
[346776158,1735277816681,1862.69,0.00012796,2]
[346776159,1735277816956,2964.69,0.00012641,2]
[346776161,1735277821411,463.23041347,0.00011973,2]
[346776162,1735277822225,707.36,0.00011973,2]
[346776163,1735277822496,707.36,0.00012247,2]
[346776164,1735277822745,707.36,0.00012521,2]
[346776165,1735277822992,707.36,0.00012795,2]
[346776166,1735277823282,2471.59,0.00011975,2]
[346776167,1735277823416,713.14,0.00011973,2]
[346776168,1735277823674,713.14,0.00012247,2]
[346776169,1735277823935,713.14,0.00012521,2]
[346776170,1735277824200,713.14,0.00012795,2]
[346776171,1735277824799,2471.59,0.00012249,2]
[346776172,1735277824979,500.0,0.00011973,2]
[346776173,1735277825530,2471.59,0.00012523,2]
[346776174,1735277825998,2471.59,0.00012797,2]
[346776175,1735277829069,970.29,0.00011974,2]
[346776176,1735277830498,970.29,0.00012248,2]
[346776177,1735277831106,970.29,0.00012522,2]
[346776178,1735277831818,970.29,0.00012796,2]
[346776179,1735277834464,1360.71,0.00011973,2]
[346776180,1735277834727,1360.71,0.00012247,2]
[346776181,1735277834975,1360.71,0.00012521,2]
[346776182,1735277835241,1360.71,0.00012795,2]
[346776183,1735277840884,23287.59338903,0.0002,120]
[346776184,1735277842759,1153.3,0.00011973,2]
[346776185,1735277843000,1153.3,0.00012247,2]
[346776186,1735277843268,1153.3,0.00012521,2]
[346776187,1735277843516,1153.3,0.00012795,2]
[346776188,1735277846041,2049.45,0.00011974,2]
[346776189,1735277846814,2049.45,0.00012248,2]
[346776190,1735277847399,2049.45,0.00012522,2]
[346776191,1735277847725,216.52,0.00012641,2]
[346776192,1735277848399,2049.45,0.00012796,2]
[346776193,1735277849351,691.5,0.00011973,2]
[346776194,1735277849444,794.51,0.00011974,2]
[346776195,1735277849594,691.5,0.00012247,2]
[346776196,1735277849854,691.5,0.00012521,2]
[346776197,1735277850543,691.5,0.00012795,2]
[346776198,1735277850715,794.51,0.00012248,2]
[346776199,1735277851894,794.51,0.00012522,2]
[346776200,1735277852420,794.51,0.00012796,2]
[346776201,1735277853971,3216.45,0.00011975,2]
[346776202,1735277854676,3216.45,0.00012249,2]
[346776203,1735277855436,3216.45,0.00012523,2]
[346776204,1735277856737,3216.45,0.00012797,2]
[346776205,1735277857288,500.0,0.00011973,2]
[346776206,1735277857654,500.0,0.00012247,2]
[346776207,1735277857904,500.0,0.00012521,2]
[346776208,1735277858155,500.0,0.00012795,2]
[346776209,1735277858396,9789.09,0.00011973,2]
[346776210,1735277859020,9789.09,0.00012247,2]
[346776211,1735277859646,9789.09,0.00012521,2]
[346776212,1735277860371,1680.05,0.00011974,2]
[346776213,1735277860898,9789.09,0.00012795,2]
[346776214,1735277861362,1680.05,0.00012248,2]
[346776215,1735277861973,1680.05,0.00012522,2]
[346776216,1735277862585,1680.05,0.00012796,2]
[346776217,1735277865384,560.53,0.00011973,2]
[346776218,1735277865626,560.53,0.00012247,2]
[346776219,1735277865857,560.53,0.00012521,2]
[346776220,1735277866172,560.53,0.00012795,2]
[346776221,1735277867637,1510.95,0.00011973,2]
[346776222,1735277867887,1510.95,0.00012247,2]
[346776223,1735277868239,1510.95,0.00012521,2]
[346776224,1735277868398,1510.95,0.00012795,2]
[346776225,1735277868980,288.82,0.00010137,2]
[346776226,1735277873538,694.71,0.00011973,2]
[346776227,1735277873797,694.71,0.00012247,2]
[346776228,1735277876308,1502.55,0.00011973,2]
[346776229,1735277876629,1502.55,0.00012247,2]
[346776230,1735277877119,2102.27,0.00011974,2]
[346776231,1735277877216,1502.55,0.00012521,2]
[346776232,1735277877474,1502.55,0.00012795,2]
[346776233,1735277878160,694.71,0.00012521,2]
[346776234,1735277878209,2102.27,0.00012248,2]
[346776235,1735277878430,694.71,0.00012795,2]
[346776236,1735277878816,2102.27,0.00012522,2]
[346776237,1735277879347,2102.27,0.00012796,2]
[346776238,1735277886068,500.0,0.00011973,2]
[346776239,1735277886804,500.0,0.00012247,2]
[346776240,1735277887293,500.0,0.00012521,2]
[346776241,1735277888228,500.0,0.00012795,2]
[346776242,1735277890483,500.0,0.00011973,2]
[346776243,1735277890734,500.0,0.00012247,2]
[346776244,1735277891017,500.0,0.00012521,2]
[346776245,1735277891289,500.0,0.00012795,2]
[346776246,1735277892587,500.0,0.00011974,2]
[346776247,1735277892786,500.0,0.00012248,2]
[346776248,1735277893092,4499.61,0.00011975,2]
[346776249,1735277893157,500.0,0.00012522,2]
[346776250,1735277893643,500.0,0.00012796,2]
[346776251,1735277893820,4499.61,0.00012249,2]
[346776252,1735277894233,4499.61,0.00012523,2]
[346776253,1735277894777,4499.61,0.00012797,2]
[346776254,1735277895344,503.44,0.00011973,2]
[346776255,1735277895607,503.44,0.00012247,2]
[346776256,1735277895892,503.44,0.00012521,2]
[346776257,1735277896149,503.44,0.00012795,2]
[346776258,1735277898575,1002.1,0.00011973,2]
[346776259,1735277898823,1002.1,0.00012247,2]
[346776260,1735277899104,1002.1,0.00012521,2]
[346776261,1735277899424,1002.1,0.00012795,2]
[346776262,1735277903663,877.96,0.00011973,2]
[346776263,1735277903898,877.96,0.00012247,2]
[346776264,1735277904472,877.96,0.00012521,2]
[346776265,1735277904547,877.96,0.00012795,2]
[346776266,1735277909983,1552.24,0.00011974,2]
[346776267,1735277910772,1552.24,0.00012248,2]
[346776268,1735277911421,1552.24,0.00012522,2]
[346776269,1735277911922,769.21,0.00011973,2]
[346776270,1735277912186,769.21,0.00012247,2]
[346776271,1735277912599,1552.24,0.00012796,2]
[346776272,1735277912760,769.21,0.00012521,2]
[346776273,1735277912981,1715.82,0.00011974,2]
[346776274,1735277913036,769.21,0.00012795,2]
[346776275,1735277913952,1715.82,0.00012248,2]
[346776276,1735277914511,1715.82,0.00012522,2]
[346776277,1735277914948,1715.82,0.00012796,2]
[346776278,1735277917016,1356.65,0.00011974,2]
[346776279,1735277917582,1356.65,0.00012248,2]
[346776280,1735277918433,1356.65,0.00012522,2]
[346776281,1735277918970,1356.65,0.00012796,2]
[346776282,1735277922107,4291.79,0.00011975,2]
[346776283,1735277922654,4291.79,0.00012249,2]
[346776284,1735277923220,4291.79,0.00012523,2]
[346776285,1735277924695,4291.79,0.00012797,2]
[346776286,1735277925786,500.0,0.00011973,2]
[346776287,1735277926026,559.38756414,0.00012247,2]
[346776288,1735277926169,500.0,0.00011973,2]
[346776289,1735277926422,500.0,0.00012247,2]
[346776290,1735277926675,500.0,0.00012521,2]
[346776291,1735277926937,500.0,0.00012795,2]
[346776292,1735277929962,500.0,0.00011973,2]
[346776293,1735277930195,1341.97,0.00011973,2]
[346776294,1735277930241,500.0,0.00012247,2]
[346776295,1735277930465,270.61183266,0.00012521,2]
[346776296,1735277930816,1341.97,0.00012247,2]
[346776297,1735277931505,1341.97,0.00012521,2]
[346776298,1735277932410,1341.97,0.00012795,2]
[346776299,1735277932511,931.44,0.00011973,2]
[346776300,1735277932785,931.44,0.00012247,2]
[346776301,1735277933040,931.44,0.00012521,2]
[346776302,1735277933316,931.44,0.00012795,2]
[346776303,1735277938282,1707.87,0.00011974,2]
[346776304,1735277939600,1707.87,0.00012248,2]
[346776305,1735277940844,1707.87,0.00012522,2]
[346776306,1735277941149,500.0,0.00011973,2]
[346776307,1735277941466,500.0,0.00012247,2]
[346776308,1735277941747,500.0,0.00012521,2]
[346776309,1735277942003,500.0,0.00012795,2]
[346776310,1735277942133,1707.87,0.00012796,2]
[346776311,1735277943309,500.0,0.00011973,2]
[346776312,1735277943616,500.0,0.00012247,2]
[346776313,1735277943848,500.0,0.00012521,2]
[346776314,1735277944095,500.0,0.00012795,2]
[346776315,1735277948275,555.73,0.00011973,2]
[346776316,1735277948535,555.73,0.00012247,2]
[346776317,1735277948807,555.73,0.00012521,2]
[346776318,1735277948875,2059.66,0.00011974,2]
[346776319,1735277949007,699.97,0.00011973,2]
[346776320,1735277949082,555.73,0.00012795,2]
[346776321,1735277949273,699.97,0.00012247,2]
[346776322,1735277949562,699.97,0.00012521,2]
[346776323,1735277949700,2059.66,0.00012248,2]
[346776324,1735277949833,699.97,0.00012795,2]
[346776325,1735277950542,3790.02,0.00011974,2]
[346776326,1735277950652,2059.66,0.00012522,2]
[346776327,1735277951132,23595.18,0.00011975,2]
[346776328,1735277951484,3790.02,0.00012248,2]
[346776329,1735277951741,2059.66,0.00012796,2]
[346776330,1735277952528,23595.18,0.00012249,2]
[346776331,1735277952598,3790.02,0.00012522,2]
[346776332,1735277953203,23595.18,0.00012523,2]
[346776333,1735277953263,3790.02,0.00012796,2]
[346776334,1735277953710,23595.18,0.00012797,2]
[346776335,1735277960151,1710.74,0.00011973,2]
[346776336,1735277960770,1710.74,0.00012247,2]
[346776337,1735277961583,1710.74,0.00012521,2]
[346776338,1735277962172,1710.74,0.00012795,2]
[346776339,1735277963162,500.0,0.00011973,2]
[346776340,1735277963426,500.0,0.00012247,2]
[346776341,1735277963699,500.0,0.00012521,2]
[346776342,1735277963984,500.0,0.00012795,2]
[346776343,1735277964310,728.31,0.00011973,2]
[346776344,1735277964582,728.31,0.00012247,2]
[346776345,1735277964834,728.31,0.00012521,2]
[346776346,1735277965081,728.31,0.00012795,2]
[346776347,1735277967688,1751.89,0.00011974,2]
[346776348,1735277969526,1751.89,0.00012248,2]
[346776349,1735277972061,1751.89,0.00012522,2]
[346776350,1735277972652,1751.89,0.00012796,2]
[346776351,1735277974686,500.0,0.00011973,2]
[346776352,1735277974961,500.0,0.00012247,2]
[346776353,1735277975230,500.0,0.00012521,2]
[346776354,1735277975501,191.84017684,0.00012795,2]
[346776355,1735277979205,681.51,0.00011973,2]
[346776356,1735277979453,681.51,0.00012247,2]
[346776357,1735277979765,681.51,0.00012521,2]
[346776358,1735277979850,2680.38,0.00011974,2]
[346776359,1735277980027,681.51,0.00012795,2]
[346776360,1735277980897,2680.38,0.00012248,2]
[346776361,1735277981899,2680.38,0.00012522,2]
[346776362,1735277982366,880.44,0.00011974,2]
[346776363,1735277982563,2680.38,0.00012796,2]
[346776364,1735277982640,880.44,0.00012248,2]
[346776365,1735277983148,880.44,0.00012522,2]
[346776366,1735277983267,1221.09,0.00011973,2]
[346776367,1735277983510,1221.09,0.00012247,2]
[346776368,1735277983782,1221.09,0.00012521,2]
[346776369,1735277984033,1221.09,0.00012795,2]
[346776370,1735277984498,880.44,0.00012796,2]
[346776371,1735277992755,777.91,0.00011973,2]
[346776372,1735277993013,777.91,0.00012247,2]
[346776373,1735277993268,777.91,0.00012521,2]
[346776374,1735277993532,777.91,0.00012795,2]
[346776375,1735277999820,500.0,0.00011973,2]
[346776376,1735278000066,500.0,0.00012247,2]
[346776377,1735278000339,500.0,0.00012521,2]
[346776378,1735278000586,500.0,0.00012795,2]
[346776379,1735278006551,674.39,0.00011973,2]
[346776380,1735278006824,674.39,0.00012247,2]
[346776381,1735278007149,674.39,0.00012521,2]
[346776382,1735278007413,674.39,0.00012795,2]
[346776383,1735278013913,2414.51,0.00011975,2]
[346776384,1735278014481,2414.51,0.00012249,2]
[346776385,1735278014693,1130.55,0.00011974,2]
[346776386,1735278015133,2414.51,0.00012523,2]
[346776387,1735278015198,1130.55,0.00012248,2]
[346776388,1735278015809,2414.51,0.00012797,2]
[346776389,1735278015947,1130.55,0.00012522,2]
[346776390,1735278016478,3749.68,0.00011974,2]
[346776391,1735278016546,3889.0,0.00012258,2]
[346776392,1735278016708,1130.55,0.00012796,2]
[346776393,1735278017640,3749.68,0.00012248,2]
[346776394,1735278018406,3749.68,0.00012522,2]
[346776395,1735278019425,3749.68,0.00012796,2]
[346776396,1735278021364,150.0,0.00012258,2]
[346776397,1735278027433,811.85,0.00011973,2]
[346776398,1735278027853,811.85,0.00012247,2]
[346776399,1735278028105,811.85,0.00012521,2]
[346776400,1735278028353,811.85,0.00012795,2]
[346776401,1735278035957,500.0,0.00011973,2]
[346776402,1735278036200,500.0,0.00012247,2]
[346776403,1735278036394,1102.0,0.00012258,2]
[346776404,1735278036500,500.0,0.00012521,2]
[346776405,1735278036824,500.0,0.00012795,2]
[346776406,1735278042007,1644.84,0.00011973,2]
[346776407,1735278042134,1334.96,0.00011973,2]
[346776408,1735278042370,1334.96,0.00012247,2]
[346776409,1735278042496,1232.19,0.00011975,2]
[346776410,1735278042648,1334.96,0.00012521,2]
[346776411,1735278042765,1644.84,0.00012247,2]
[346776412,1735278042991,1334.96,0.00012795,2]
[346776413,1735278043309,1232.19,0.00012249,2]
[346776414,1735278043384,1644.84,0.00012521,2]
[346776415,1735278043971,1232.19,0.00012523,2]
[346776416,1735278044024,1644.84,0.00012795,2]
[346776417,1735278045381,1232.19,0.00012797,2]
[346776418,1735278045607,3576.5,0.00011974,2]
[346776419,1735278045933,1716.38,0.00011974,2]
[346776420,1735278046163,3576.5,0.00012248,2]
[346776421,1735278046766,1716.38,0.00012248,2]
[346776422,1735278046940,3576.5,0.00012522,2]
[346776423,1735278047151,1109.71,0.00011974,2]
[346776424,1735278047264,1716.38,0.00012522,2]
[346776425,1735278047885,3576.5,0.00012796,2]
[346776426,1735278048551,1716.38,0.00012796,2]
[346776427,1735278048784,1109.71,0.00012248,2]
[346776428,1735278049330,1109.71,0.00012522,2]
[346776429,1735278050012,1109.71,0.00012796,2]
[346776430,1735278050775,743.25,0.00011973,2]
[346776431,1735278050855,743.25,0.00012247,2]
[346776432,1735278050950,743.25,0.00012521,2]
[346776433,1735278051195,743.25,0.00012795,2]
[346776434,1735278052534,500.0,0.00011973,2]
[346776435,1735278053722,500.0,0.00012247,2]
[346776436,1735278054391,500.0,0.00012521,2]
[346776437,1735278054933,500.0,0.00012795,2]
[346776438,1735278072953,19662.65,0.00011974,2]
[346776439,1735278074269,19662.65,0.00012248,2]
[346776440,1735278074987,19662.65,0.00012522,2]
[346776441,1735278075718,19662.65,0.00012796,2]
[346776442,1735278077367,986.02,0.00011973,2]
[346776443,1735278077630,986.02,0.00012247,2]
[346776444,1735278077892,986.02,0.00012521,2]
[346776445,1735278078156,986.02,0.00012795,2]
[346776446,1735278078425,200.7,0.00012579,2]
[346776447,1735278085783,150.0,0.00012983,2]
[346776448,1735278088977,3124.73,0.00011974,2]
[346776449,1735278089486,3124.73,0.00012248,2]
[346776450,1735278090911,3124.73,0.00012522,2]
[346776451,1735278091419,3124.73,0.00012796,2]
[346776452,1735278091767,500.0,0.00011974,2]
[346776453,1735278093037,500.0,0.00012248,2]
[346776454,1735278093201,500.0,0.00012522,2]
[346776455,1735278094201,500.0,0.00012796,2]
[346776456,1735278094287,845.09,0.00011973,2]
[346776457,1735278094345,1062.39,0.00011973,2]
[346776458,1735278094565,845.09,0.00012247,2]
[346776459,1735278094818,845.09,0.00012521,2]
[346776460,1735278094874,1062.39,0.00012247,2]
[346776461,1735278095088,845.09,0.00012795,2]
[346776462,1735278095573,1062.39,0.00012521,2]
[346776463,1735278097052,1062.39,0.00012795,2]
[346776464,1735278102757,500.0,0.00011973,2]
[346776465,1735278103678,500.0,0.00012247,2]
[346776466,1735278103768,500.0,0.00012521,2]
[346776467,1735278103857,500.0,0.00012795,2]
[346776468,1735278104019,153.0,0.00012198,2]
[346776469,1735278104104,153.0,0.00012198,2]
[346776470,1735278104175,153.0,0.00012198,2]
[346776471,1735278105805,1285.13,0.00011973,2]
[346776472,1735278105857,838.86,0.00011975,2]
[346776473,1735278106052,1285.13,0.00012247,2]
[346776474,1735278106330,1285.13,0.00012521,2]
[346776475,1735278106579,1285.13,0.00012795,2]
[346776476,1735278106640,838.86,0.00012249,2]
[346776477,1735278108147,838.86,0.00012523,2]
[346776478,1735278108962,838.86,0.00012797,2]
[346776479,1735278114492,500.0,0.00011973,2]
[346776480,1735278114565,500.0,0.00012247,2]
[346776481,1735278114896,500.0,0.00012521,2]
[346776482,1735278115162,500.0,0.00012795,2]
[346776483,1735278116005,153.0,0.00012197,2]
[346776484,1735278116289,1654.21,0.00011973,2]
[346776485,1735278116577,153.0,0.00012197,2]
[346776486,1735278116762,2980.41,0.00011974,2]
[346776487,1735278117207,1654.21,0.00012247,2]
[346776488,1735278118003,1654.21,0.00012521,2]
[346776489,1735278118063,2980.41,0.00012248,2]
[346776490,1735278118518,1654.21,0.00012795,2]
[346776491,1735278118761,2980.41,0.00012522,2]
[346776492,1735278119942,2980.41,0.00012796,2]
[346776493,1735278122610,1425.61,0.00011973,2]
[346776494,1735278124041,1425.61,0.00012247,2]
[346776495,1735278125591,1425.61,0.00012521,2]
[346776496,1735278126548,1425.61,0.00012795,2]
[346776497,1735278128603,662.09,0.00011974,2]
[346776498,1735278129251,662.09,0.00012248,2]